bitfinex-derivatives/quotes_ETHF0:USTF0_20251028
["timestamp","ask_amount","ask_price","bid_price","bid_amount"]
[1761638403645,0.5648,4119.0,4118.9,0.4457]
[1761638403939,0.3175,4119.4,4119.0,0.2469]
[1761638404134,0.35015324,4120.0,4119.3,0.6926]
[1761638404337,0.3188,4119.8,4119.2,1.9899358]
[1761638404539,0.442,4119.8,4119.7,0.2224]
[1761638405044,0.7608,4119.8,4119.7,0.2224]
[1761638406045,0.7608,4119.8,4119.7,0.4377]
[1761638407444,0.1362,4119.5,4119.3,1.7430358]
[1761638407639,0.3232,4119.1,4119.0,1.7430358]
[1761638407852,0.7601,4119.1,4119.0,1.7430358]
[1761638408140,0.8963,4119.0,4118.9,0.2131]
[1761638408342,0.8963,4119.0,4118.9,0.4328]
[1761638408646,0.4594,4119.0,4118.9,1.11674]
[1761638408849,0.8963,4119.0,4118.9,2.6128758]
[1761638409145,0.8963,4119.0,4118.9,0.4328]
[1761638410651,0.8963,4119.0,4118.9,2.1758358]
[1761638411350,0.6715,4119.0,4118.9,2.8597758]
[1761638411546,0.3232,4119.0,4118.9,2.8597758]
[1761638411750,0.5353,4119.4,4119.3,0.6797]
[1761638412549,0.7601,4119.4,4119.3,0.4328]
[1761638418169,0.3232,4119.3,4119.0,0.4328]
[1761638418470,0.7601,4119.1,4119.0,0.4328]
[1761638418770,0.7601,4119.1,4119.0,0.86982]
[1761638419274,0.7601,4119.1,4119.0,1.11672]
[1761638419463,0.5353,4119.1,4119.0,1.11672]
[1761638419666,0.7601,4119.1,4119.0,0.4328]
[1761638419970,0.7601,4119.1,4119.0,0.86982]
[1761638420571,0.7601,4119.1,4119.0,0.4328]
[1761638421571,0.7601,4119.1,4119.0,0.86982]
[1761638422070,0.7601,4119.1,4119.0,1.11672]
[1761638422273,0.7601,4119.1,4119.0,0.4328]
[1761638423872,0.8963,4119.0,4118.9,1.74057826]
[1761638424072,0.5731,4119.0,4118.8,1.74057826]
[1761638424266,0.7601,4118.9,4118.8,1.74057826]
[1761638424866,0.4369,4118.9,4118.7,1.95367826]
[1761638425164,0.7601,4118.8,4118.7,1.95523797]
[1761638426169,0.7601,4118.8,4118.7,0.2131]
[1761638426369,0.7601,4118.8,4118.7,1.11676]
[1761638426969,0.1362,4119.0,4118.9,1.11674]
[1761638426970,0.3232,4119.0,4118.9,1.11674]
[1761638427278,0.5353,4119.4,4119.3,0.6797]
[1761638427480,0.5353,4119.4,4119.3,1.11669]
[1761638428479,0.3232,4119.4,4119.3,1.11669]
[1761638429280,0.5353,4119.4,4119.3,1.11669]
[1761638429678,0.3232,4119.4,4119.3,1.11669]
[1761638430281,0.5353,4119.4,4119.3,1.11669]
[1761638430483,1.3098899,4121.7,4121.6,0.2131]
[1761638430776,0.4369,4121.7,4121.6,0.7592]
[1761638430976,0.1362,4121.5,4121.3,1.74067715]
[1761638431186,0.1362,4121.0,4120.8,1.95377715]
[1761638431376,0.4369,4120.9,4120.8,1.95377715]
[1761638431679,0.43936457,4120.9,4120.8,0.54247627]
[1761638432078,0.43936457,4120.9,4120.8,0.00297627]
[1761638432383,8.76256457,4120.9,4120.8,0.00297627]
[1761638432676,0.76256457,4120.9,4120.8,0.00297627]
[1761638432877,0.5353,4121.8,4120.8,0.00297627]
[1761638433077,0.3232,4122.4,4122.2,0.5395]
[1761638433273,0.3232,4122.1,4121.9,0.5395]
[1761638433477,0.4369,4121.4,4121.3,0.3264]
[1761638433778,0.7601,4121.4,4121.3,0.2131]
[1761638433972,0.76316348,4121.4,4121.3,0.2131]
[1761638434177,0.3233,4121.3,4121.0,0.5395]
[1761638434379,0.43996348,4121.4,4121.0,0.5395]
[1761638434380,0.7769,4121.1,4121.0,0.5395]
[1761638434572,0.7769,4120.9,4120.8,0.00297627]
[1761638434981,0.7769,4120.9,4120.8,0.53967627]
[1761638435283,0.7769,4120.9,4120.8,0.75117627]
[1761638436080,0.7769,4120.9,4120.8,0.00297627]
[1761638436677,0.7769,4120.9,4119.7,2.06747715]
[1761638436883,0.7769,4119.8,4119.7,0.5367]
[1761638437079,0.7769,4119.8,4119.7,0.7482]
[1761638437787,0.7769,4119.8,4119.7,0.7507758]
[1761638438281,0.7769,4119.8,4119.7,0.0025758]
[1761638447390,0.1251,4119.0,4118.6,0.4214]
[1761638447594,0.4536,4118.3,4118.2,0.7482]
[1761638447788,0.7769,4118.3,4118.2,1.18531]
[1761638447988,0.7769,4118.3,4118.2,0.7482]
[1761638448191,0.7769,4118.3,4118.2,1.18531]
[1761638448489,0.77975195,4118.3,4118.2,1.18752238]
[1761638448691,0.77975195,4118.3,4118.2,0.75041238]
[1761638449789,0.77975195,4118.3,4118.2,0.21211238]
[1761638450193,0.77975195,4118.3,4118.2,0.00221238]
[1761638450399,0.7769,4117.4,4117.3,0.5367]
[1761638451286,0.7769,4117.4,4117.3,0.21203011]
[1761638451497,0.7769,4117.4,4117.3,0.00213011]
[1761638453093,41.5769,4117.4,4117.3,0.00213011]
[1761638454191,0.3233,4117.3,4115.7,0.3268]
[1761638454387,0.3233,4117.3,4116.2,0.3268]
[1761638455299,0.5529,4116.3,4116.2,0.75101141]
[1761638457205,0.7769,4116.3,4116.2,0.75101141]
[1761638457404,0.7769,4116.3,4116.2,0.53951141]
[1761638457791,0.7769,4116.3,4116.2,0.75101141]
[1761638458997,0.7769,4116.3,4116.2,0.53951141]
[1761638460103,0.7769,4116.3,4116.2,0.21271141]
[1761638460706,0.7769,4116.3,4116.2,0.75101141]
[1761638461196,0.7769,4116.3,4116.2,0.00281141]
[1761638461904,0.7769,4116.3,4116.2,0.75101141]
[1761638462503,0.5529,4116.6,4116.2,0.42421141]
[1761638462712,0.7769,4116.8,4116.7,0.7482]
[1761638463299,0.2296,4116.8,4116.7,0.7482]
[1761638463701,0.7769,4116.8,4116.7,0.7482]
[1761638465710,0.4536,4116.8,4116.7,1.18547]
[1761638466007,0.4536,4116.8,4116.7,0.7482]
[1761638466405,0.2296,4116.8,4116.7,0.7482]
[1761638466804,0.7829,4116.8,4116.7,0.7482]
[1761638467111,0.2296,4116.8,4116.7,0.7482]
[1761638467309,0.5368,4117.1,4116.8,0.3448]
[1761638467612,0.5368,4117.1,4117.0,0.9207]
[1761638468613,0.2117,4117.1,4117.0,0.9207]
[1761638468804,0.3149,4117.4,4117.0,0.5759]
[1761638469014,0.7478,4117.4,4117.3,0.782]
[1761638469706,0.7478,4117.8,4117.7,0.2196]
[1761638469912,0.7478,4118.0,4117.9,0.782]
[1761638471610,0.1251,4118.5,4117.9,1.21914]
[1761638471611,0.31775195,4118.3,4117.9,1.21914]
[1761638471910,0.00285195,4118.3,4118.2,0.782]
[1761638473419,0.21455195,4118.3,4118.2,0.782]
[1761638473805,0.00285195,4118.3,4118.2,0.782]
[1761638474807,0.75065195,4118.3,4118.2,0.782]
[1761638476006,0.4329,4118.1,4118.0,0.5644]
[1761638476212,0.7478,4118.1,4118.0,0.782]
[1761638476512,0.4329,4118.1,4117.7,0.5644]
[1761638476714,0.4329,4118.1,4116.9,2.17584643]
[1761638476715,0.136,4117.5,4117.4,0.2196]
[1761638476909,0.3149,4117.4,4117.1,0.5644]
[1761638477116,0.136,4117.5,4117.1,0.5644]
[1761638477117,0.7478,4117.2,4117.1,0.782]
[1761638477919,0.5266,4117.5,4117.2,0.3448]
[1761638478116,0.7478,4117.5,4117.4,0.782]
[1761638478417,0.8838,4117.5,4117.4,0.782]
[1761638478904,0.7478,4117.5,4117.4,0.782]
[1761638479514,0.8838,4117.5,4117.4,0.2196]
[1761638479911,0.8838,4117.5,4117.4,0.782]
[1761638480117,0.7478,4117.5,4117.4,0.782]
[1761638481419,0.8838,4117.5,4117.4,0.782]
[1761638482213,0.3149,4117.4,4117.1,0.5644]
[1761638482420,0.7478,4117.2,4117.1,0.5644]
[1761638482619,0.7478,4117.2,4117.1,0.782]
[1761638483027,0.7478,4117.2,4117.1,1.21923]
[1761638483818,0.7478,4117.2,4117.1,0.782]
[1761638484822,31.6838,4117.9,4117.5,0.1387]
[1761638485021,0.00285195,4118.3,4117.6,0.3448]
[1761638485413,0.00285195,4118.3,4117.6,0.2196]
[1761638485620,0.00285195,4118.3,4117.7,0.3448]
[1761638485822,40.8,4118.2,4117.7,0.3448]
[1761638486025,40.8,4118.2,4117.7,0.5644]
[1761638486321,40.8,4118.2,4118.1,0.3448]
[1761638487417,0.00285195,4118.3,4118.1,0.3448]
[1761638487814,40.80285195,4118.3,4118.1,0.3448]
[1761638488722,40.80285195,4118.3,4118.1,0.78191]
[1761638489126,40.80285195,4118.3,4118.2,0.3448]
[1761638489316,41.35648309,4118.3,4118.2,0.3448]
[1761638497237,40.80285195,4118.3,4118.2,0.3448]
[1761638500239,40.80285195,4118.3,4117.6,0.3599]
[1761638501731,0.00285195,4118.3,4117.6,0.3599]
[1761638501932,0.00285195,4118.3,4117.7,0.6102]
[1761638502133,0.00285195,4118.3,4117.8,0.3599]
[1761638503538,0.00285195,4118.3,4117.8,0.2503]
[1761638503730,0.00285195,4118.3,4118.0,0.1507]
[1761638504031,0.00285195,4118.3,4118.1,0.3599]
[1761638504432,0.00285195,4118.3,4118.2,0.3599]
[1761638504934,0.55754583,4118.3,4118.2,0.3599]
[1761638506737,0.55754583,4118.3,4116.6,0.3599]
[1761638507034,0.87303042,4117.6,4116.8,0.3599]
[1761638507232,0.55469388,4117.5,4117.4,0.8385]
[1761638515538,0.55469388,4117.5,4117.4,0.6102]
[1761638516039,0.55469388,4117.5,4117.4,0.3599]
[1761638516238,40.8,4117.6,4117.4,0.3599]
[1761638516536,40.8,4117.6,4117.5,0.5106]
[1761638516737,41.36060526,4117.6,4117.5,0.5106]
[1761638518642,41.36060526,4117.6,4117.1,0.3599]
[1761638518836,0.56060526,4117.5,4117.1,0.3599]
[1761638519042,0.22297342,4117.5,4117.1,0.3599]
[1761638519346,0.56049671,4117.4,4116.8,0.3599]
[1761638519540,0.56049671,4117.3,4116.8,0.3599]
[1761638519740,0.56049671,4117.2,4116.8,0.3599]
[1761638520039,40.8,4117.6,4116.8,0.3599]
[1761638520246,0.87303042,4117.9,4116.5,0.1316]
[1761638520247,0.56048957,4117.5,4117.4,1.27569]
[1761638520445,0.00285195,4118.3,4118.1,0.6102]
[1761638520638,0.00285195,4118.3,4118.2,0.3599]
[1761638520839,40.80285195,4118.3,4118.1,0.3599]
[1761638521144,0.56054793,4118.2,4118.1,0.3599]
[1761638522752,0.56054793,4118.2,4118.1,0.6102]
[1761638523446,0.56054793,4118.2,4118.1,0.3599]
[1761638525043,0.56054793,4118.2,4118.1,0.6102]
[1761638525250,40.80285195,4118.3,4118.2,0.3392]
[1761638525444,40.80285195,4118.3,4118.2,0.565]
[1761638526449,40.80285195,4118.3,4118.2,0.3392]
[1761638526851,40.80285195,4118.3,4118.2,0.565]
[1761638527051,40.80285195,4118.3,4118.2,0.3392]
[1761638527251,41.36357129,4118.3,4118.2,0.3392]
[1761638527448,41.36357129,4118.3,4118.0,0.4696]
[1761638527652,0.56071934,4118.2,4117.7,0.3189]
[1761638528555,0.56071934,4118.2,4117.5,0.1507]
[1761638529248,40.8,4117.7,4117.5,0.4696]
[1761638529442,40.8,4117.7,4117.5,0.1507]
[1761638529751,40.8,4117.7,4117.6,0.3189]
[1761638529953,41.36052846,4117.7,4117.6,0.3189]
[1761638530650,41.36052846,4117.7,4117.6,0.5381]
[1761638531354,41.36052846,4117.7,4117.6,0.3189]
[1761638532655,41.36052846,4117.7,4117.6,0.5381]
[1761638535557,41.36052846,4117.7,4117.6,0.3189]
[1761638535850,41.36052846,4117.7,4117.1,0.3189]
[1761638536050,0.56052846,4117.6,4116.7,0.3189]
[1761638536754,40.8,4117.5,4116.7,0.3189]
[1761638536951,0.56052846,4117.4,4116.7,0.3189]
[1761638537147,1.43355888,4117.4,4116.5,0.1316]
[1761638537348,0.56052846,4117.3,4116.5,0.4505]
[1761638537547,0.56052846,4117.2,4116.5,0.4505]
[1761638537748,0.56052846,4117.1,4116.5,0.4505]
[1761638537958,0.56052846,4117.0,4116.5,0.1316]
[1761638538152,0.56052846,4116.9,4116.6,0.3189]
[1761638538349,0.56052846,4116.8,4116.6,0.3189]
[1761638538549,0.87303042,4117.3,4116.6,0.3189]
[1761638538550,0.56052846,4116.7,4116.6,0.3189]
[1761638539258,41.36052846,4116.7,4116.6,0.3189]
[1761638540257,40.8,4116.7,4116.6,0.3189]
[1761638545947,40.8,4116.7,4116.6,0.7602]
[1761638546152,0.87303042,4117.8,4116.7,0.75617]
[1761638546357,0.56327451,4117.7,4117.6,0.3189]
[1761638546655,41.36327451,4117.7,4117.6,0.3189]
[1761638551067,41.36327451,4117.7,4117.6,0.5381]
[1761638551664,41.36327451,4117.7,4117.6,0.3189]
[1761638558272,42.23630493,4117.7,4117.6,0.3189]
[1761638559172,42.23630493,4117.7,4117.2,0.3363]
[1761638559370,1.87282015,4117.6,4116.5,0.1316]
[1761638559676,0.87303042,4117.4,4116.6,0.3363]
[1761638559865,40.8,4116.9,4116.6,0.3363]
[1761638560171,0.56327451,4116.8,4116.6,0.3363]
[1761638563085,0.56327451,4116.8,4116.5,0.4679]
[1761638563384,0.56327451,4116.8,4116.6,0.3363]
[1761638564986,0.56327451,4116.7,4116.6,0.3363]
[1761638565282,41.36327451,4116.7,4116.6,0.3363]
[1761638567076,41.36327451,4116.7,4116.6,0.5594]
[1761638567281,41.36327451,4116.7,4116.6,0.7701]
[1761638572392,41.36327451,4116.7,4116.6,0.3363]
[1761638572787,41.36327451,4116.7,4116.6,0.5594]
[1761638574392,0.56327451,4116.7,4116.6,0.7701]
[1761638574591,0.5651514,4117.2,4117.1,0.3363]
[1761638575200,1.43818182,4117.2,4117.1,0.3363]
[1761638577794,0.5651514,4117.2,4117.1,0.3363]
[1761638584804,0.5651514,4117.2,4117.1,0.3192]
[1761638584805,1.87469704,4117.2,4117.1,0.3192]
[1761638588206,0.5651514,4117.2,4117.1,0.3192]
[1761638588798,0.5651514,4117.2,4116.8,0.3226]
[1761638589101,1.31046903,4117.0,4116.8,0.3226]
[1761638590002,40.8,4116.9,4116.8,0.3226]
[1761638590297,41.3651514,4116.9,4116.8,0.3226]
[1761638592404,42.67562043,4116.9,4116.8,0.3226]
[1761638595418,41.3651514,4116.9,4116.6,0.3226]
[1761638595615,1.87647974,4116.8,4116.6,0.3226]
[1761638596120,0.5651514,4116.7,4116.6,0.3226]
[1761638596326,40.8,4116.7,4116.6,0.3226]
[1761638596619,41.3651514,4116.7,4116.6,0.3226]
[1761638598821,42.23924808,4116.7,4116.6,0.7593]
[1761638600123,0.5651514,4116.7,4116.6,0.7593]
[1761638600421,0.87409668,4117.3,4117.2,0.7593]
[1761638600622,40.8,4117.3,4117.2,0.7593]
[1761638600820,41.36879994,4117.3,4117.2,0.7593]
[1761638609037,41.36879994,4117.3,4115.1,2.18718]
[1761638609321,41.1419,4117.3,4117.2,0.4367]
[1761638609514,41.71142784,4117.3,4117.2,0.4367]
[1761638610016,41.71142784,4117.3,4117.2,0.43901866]
[1761638610526,42.14862784,4117.3,4117.2,0.43901866]
[1761638615025,42.14862784,4117.3,4117.2,1.73221866]
[1761638619324,1.00672784,4117.3,4117.2,2.16942866]
[1761638619531,0.4372,4117.3,4117.2,2.16942866]
[1761638619726,0.4372,4117.3,4117.2,1.73221866]
[1761638619933,0.4372,4117.3,4117.2,2.16942866]
[1761638620431,1.739,4117.3,4117.2,1.73221866]
[1761638620633,0.4372,4117.3,4117.2,1.73221866]
[1761638621327,0.4372,4117.3,4117.2,2.16942866]
[1761638621532,2.5522,4117.3,4117.2,1.73221866]
[1761638621828,2.7702,4117.3,4117.2,1.73221866]
[1761638623531,2.7702,4117.3,4117.2,2.16942866]
[1761638623734,2.7702,4117.3,4117.2,1.73221866]
[1761638624231,2.7702,4117.3,4117.2,2.16942866]
[1761638624430,0.4372,4117.3,4117.2,2.16942866]
[1761638626034,1.739,4117.3,4117.2,2.16942866]
[1761638626632,1.739,4117.3,4117.2,1.73221866]
[1761638626836,0.4372,4117.3,4117.2,1.73221866]
[1761638627540,0.4372,4117.3,4117.2,2.16942866]
[1761638628731,41.89292,4117.7,4117.2,2.16942866]
[1761638628732,0.43717,4117.6,4117.5,0.43717]
[1761638629033,2.115,4118.2,4118.1,2.346]
[1761638629341,2.71486124,4118.2,4118.1,2.346]
[1761638629535,3.15197124,4118.2,4118.1,2.346]
[1761638629728,0.59986124,4118.2,4118.1,2.78312]
[1761638629930,0.00285195,4118.3,4118.2,2.57481]
[1761638630237,0.00285195,4118.3,4118.2,2.78311]
[1761638630424,0.43995195,4118.3,4118.2,2.78311]
[1761638630624,0.43995195,4118.3,4118.2,2.346]
[1761638632338,0.43995195,4118.3,4118.2,2.78311]
[1761638633238,0.43995195,4118.3,4118.2,2.346]
[1761638633941,0.43995195,4118.3,4118.2,2.78311]
[1761638635340,0.00285195,4118.3,4118.2,2.78311]
[1761638639642,0.43995195,4118.3,4118.2,2.78311]
[1761638640746,0.00285195,4118.3,4118.2,2.78311]
[1761638641046,0.43995195,4118.3,4118.2,2.78311]
[1761638642237,2.55495195,4118.3,4118.2,2.78311]
[1761638643445,2.55495195,4118.3,4118.2,2.346]
[1761638643649,2.77014,4117.9,4117.8,6.244]
[1761638644944,2.77014,4117.9,4117.8,4.9508]
[1761638645138,2.77014,4117.9,4117.8,3.898]
[1761638645344,2.38369,4117.4,4117.3,2.8001]
[1761638645745,3.20999,4117.4,4117.3,2.8001]
[1761638646444,3.20999,4117.4,4117.3,0.7863]
[1761638646643,3.031,4117.3,4117.2,0.00231866]
[1761638646947,3.031,4117.3,4117.2,0.77391866]
[1761638648751,3.031,4117.3,4117.2,0.00231866]
[1761638649744,3.24275426,4117.3,4117.2,0.00231866]
[1761638650448,44.04275426,4117.3,4117.2,0.00231866]
[1761638652644,43.831,4117.3,4117.2,0.00231866]
[1761638652845,44.0403301,4117.3,4117.2,0.00231866]
[1761638653555,43.831,4117.3,4117.2,0.00231866]
[1761638654551,43.831,4117.3,4117.2,0.77391866]
[1761638654852,43.831,4117.3,4117.2,0.00231866]
[1761638665764,43.1087,4117.3,4117.2,2.68421866]
[1761638666053,0.4767,4117.5,4117.2,2.68421866]
[1761638666054,1.11,4117.7,4117.2,0.00231866]
[1761638666261,1.8715,4117.7,4117.6,1.5115]
[1761638666665,0.7615,4118.0,4117.9,3.11904]
[1761638666857,0.76435195,4118.3,4118.2,3.11901]
[1761638667256,1.87435195,4118.3,4118.2,3.11901]
[1761638669371,0.00285195,4118.3,4118.2,3.11901]
[1761638669569,1.87435195,4118.3,4118.2,3.11901]
[1761638674571,2.31145195,4118.3,4118.2,3.11901]
[1761638674763,1.87435195,4118.3,4118.2,3.11901]
[1761638675471,2.59665195,4118.3,4118.2,3.11901]
[1761638675969,3.03374195,4118.3,4118.2,3.11901]
[1761638676373,2.59665195,4118.3,4118.2,3.11901]
[1761638677171,3.03374195,4118.3,4118.2,3.11901]
[1761638677661,2.59665195,4118.3,4118.2,3.11901]
[1761638678978,1.87435195,4118.3,4118.2,3.11901]
[1761638679169,0.00285195,4118.3,4118.2,3.11901]
[1761638679878,0.99135195,4118.3,4118.2,3.11901]
[1761638680075,1.71295195,4118.3,4118.2,3.11901]
[1761638680376,2.47155195,4118.3,4118.2,3.11901]
[1761638683980,2.90864195,4118.3,4118.2,3.11901]
[1761638685683,2.47155195,4118.3,4118.2,3.11901]
[1761638685873,2.90864195,4118.3,4118.2,3.11901]
[1761638686068,2.90864195,4118.3,4117.7,1.09289]
[1761638686069,0.7216,4117.8,4117.7,1.43446]
[1761638686286,1.4802,4117.6,4117.5,2.11188]
[1761638686474,2.90587,4117.6,4117.3,1.43449]
[1761638686675,0.9885,4117.4,4117.3,0.4372]
[1761638686978,2.4687,4117.4,4117.3,0.4372]
[1761638687177,2.90589,4117.4,4117.3,0.6774]
[1761638687379,2.9059,4117.3,4117.2,0.00231866]
[1761638689987,2.9059,4117.3,4117.2,0.67971866]
[1761638690289,2.9059,4117.3,4117.2,1.67701866]
[1761638690790,2.9059,4117.3,4117.2,2.44721866]
[1761638691585,2.9059,4117.3,4117.2,2.88442866]
[1761638692192,2.9059,4117.3,4117.2,2.44721866]
[1761638693998,2.9059,4117.3,4117.2,2.88442866]
[1761638694899,2.9059,4117.3,4117.2,2.44721866]
[1761638695498,2.9059,4117.3,4117.2,1.44991866]
[1761638695692,2.9059,4117.3,4117.2,0.67971866]
[1761638698602,2.9059,4117.3,4117.2,0.00231866]
[1761638700600,2.9059,4117.3,4117.2,0.43952866]
[1761638700995,2.4687,4117.3,4117.2,1.11692866]
[1761638701302,2.9059,4117.3,4117.2,1.11692866]
[1761638701496,2.9059,4117.3,4117.2,0.67971866]
[1761638701704,2.9059,4117.3,4117.2,0.00231866]
[1761638702802,2.9059,4117.3,4117.2,0.67971866]
[1761638703602,2.4687,4116.3,4116.2,2.88222]
[1761638704605,2.4687,4116.3,4116.2,2.88515205]
[1761638706398,2.4687,4116.3,4116.2,0.44025205]
[1761638706704,2.4687,4116.3,4116.2,1.04045205]
[1761638707505,2.90601,4116.3,4116.2,1.04045205]
[1761638708207,2.4687,4116.3,4116.2,1.96145205]
[1761638708507,2.4687,4116.3,4116.2,2.55595205]
[1761638709199,2.01825,4116.9,4116.8,2.1118]
[1761638709400,2.1871,4116.9,4116.8,0.5963]
[1761638709601,2.1871,4116.9,4116.8,1.95456]
[1761638709808,1.581,4116.9,4116.8,2.54906]
[1761638710207,2.1871,4117.4,4117.3,2.549]
[1761638710408,0.9388,4117.4,4117.3,2.549]
[1761638710609,0.64505195,4118.3,4118.2,2.1118]
[1761638710803,0.64505195,4118.3,4118.2,1.1908]
[1761638710804,1.25115195,4118.3,4118.2,1.1908]
[1761638711011,2.18995195,4118.3,4118.2,1.1908]
[1761638711209,2.18995195,4118.3,4118.2,0.5963]
[1761638711804,0.3604,4118.0,4117.9,1.5173]
[1761638712006,2.5475,4118.0,4117.9,2.1118]
[1761638713613,2.1871,4118.0,4117.9,2.1118]
[1761638714106,2.5475,4118.0,4117.6,0.43716]
[1761638714304,2.1871,4117.2,4117.1,0.5963]
[1761638714508,0.3604,4118.0,4117.9,2.1118]
[1761638714509,2.5475,4118.0,4117.9,2.1118]
[1761638715207,3.13040642,4118.0,4117.9,2.1118]
[1761638715807,3.13040642,4118.0,4117.9,1.1908]
[1761638716006,3.13040642,4118.0,4117.9,0.5963]
[1761638716712,1.2483,4117.7,4117.6,1.5173]
[1761638716912,2.1871,4117.7,4117.6,1.5173]
[1761638717101,1.2483,4117.4,4117.3,1.9545]
[1761638717300,2.1871,4117.4,4117.3,2.549]
[1761638719014,1.581,4117.4,4117.3,2.549]
[1761638719514,2.1871,4117.4,4117.3,2.549]
[1761638720310,1.581,4117.4,4117.3,2.549]
[1761638721617,2.1871,4117.8,4117.7,2.54896]
[1761638725716,1.581,4117.8,4117.7,2.54896]
[1761638726221,2.62421,4118.2,4118.1,2.1118]
[1761638726421,3.20544648,4118.2,4118.1,2.1118]
[1761638727623,2.76833648,4118.2,4118.1,2.54892]
[1761638727823,2.62421,4118.2,4118.1,2.54892]
[1761638728121,2.1871,4118.2,4118.1,2.54892]
[1761638729718,2.62421,4118.2,4118.1,2.54892]
[1761638729917,2.62421,4118.2,4118.1,2.1118]
[1761638730120,2.62421,4118.2,4118.1,1.1908]
[1761638730317,2.62421,4118.2,4118.1,1.62792]
[1761638730519,2.62421,4118.2,4118.1,1.03342]
[1761638731214,2.62421,4118.2,4118.1,0.5963]
[1761638732842,2.62421,4118.2,4117.5,0.3667]
[1761638732843,3.27989,4118.2,4117.5,0.3667]
[1761638733022,2.1871,4117.6,4117.5,2.54898]
[1761638734014,1.08215195,4118.3,4117.9,0.5945]
[1761638734214,1.25115195,4118.3,4118.2,2.54891]
[1761638734624,2.53735195,4118.3,4118.2,2.54891]
[1761638735124,2.10025195,4118.3,4118.2,2.54891]
[1761638735723,2.53735195,4118.3,4118.2,2.1118]
[1761638736725,2.53735195,4118.3,4118.2,2.54891]
[1761638736919,2.53735195,4118.3,4118.2,2.1118]
[1761638737120,2.53735195,4118.3,4118.2,1.1908]
[1761638738422,3.11904649,4118.3,4118.2,1.1908]
[1761638738928,3.11904649,4118.3,4118.2,1.62791]
[1761638739129,3.11904649,4118.3,4118.2,2.46741]
[1761638739521,2.3805,4118.0,4117.9,1.3855]
[1761638739929,2.81763,4118.0,4117.9,1.82264]
[1761638740132,2.81763,4118.0,4117.9,0.98314]
[1761638740828,2.81763,4118.0,4117.9,1.9742]
[1761638741033,2.81763,4118.0,4117.9,1.57184]
[1761638741836,2.0553,4117.8,4117.7,0.546]
[1761638742026,2.49245,4117.8,4117.7,0.98316]
[1761638742834,2.0553,4117.8,4117.7,0.98316]
[1761638743834,2.49245,4117.8,4117.7,0.98316]
[1761638744334,2.0553,4117.8,4117.7,0.98316]
[1761638745737,2.0553,4117.8,4117.7,2.41136]
[1761638746238,1.4167,4117.8,4117.7,2.41136]
[1761638746629,0.8491,4118.1,4118.0,2.41133]
[1761638746934,1.99940587,4118.1,4118.0,2.41133]
[1761638747337,2.43652587,4118.1,4118.0,2.41133]
[1761638747842,3.07512587,4118.1,4118.0,2.41133]
[1761638750442,2.63800587,4118.1,4118.0,2.41133]
[1761638752543,3.07512587,4118.1,4118.0,0.43713]
[1761638752745,3.07512587,4118.1,4118.0,2.41133]
[1761638754437,3.07512587,4118.1,4117.6,1.09292]
[1761638754438,2.81763,4118.0,4117.9,0.43714]
[1761638754638,2.96320587,4118.0,4117.9,0.43714]
[1761638754845,2.96320587,4118.0,4117.9,2.41134]
[1761638755446,2.3805,4118.0,4117.9,2.41134]
[1761638755635,2.0553,4118.0,4117.9,2.41134]
[1761638756545,2.63766578,4118.0,4117.9,2.41134]
[1761638757347,2.96286578,4118.0,4117.9,2.41134]
[1761638760248,2.96286578,4118.0,4117.9,1.57184]
[1761638760447,2.96286578,4118.0,4117.9,2.41134]
[1761638761150,0.00285195,4118.3,4118.2,2.41131]
[1761638762054,1.2062,4119.0,4118.9,2.41123]
[1761638762248,0.5676,4119.5,4119.4,2.41118]
[1761638762439,1.2062,4119.5,4119.4,2.41118]
[1761638762745,2.0553,4119.5,4119.4,2.41118]
[1761638762961,1.5314,4120.0,4119.9,1.9742]
[1761638763171,2.10028233,4120.0,4119.9,1.97631566]
[1761638763471,2.05706206,4120.0,4119.9,1.97631566]
[1761638763657,2.38226206,4120.0,4119.9,1.13681566]
[1761638764264,2.38226206,4120.0,4119.9,0.00211566]
[1761638764462,2.94840541,4120.0,4119.9,0.00211566]
[1761638764757,1.24,4118.9,4118.8,2.24793]
[1761638765660,1.8071,4119.4,4119.3,1.8109]
[1761638765860,1.8071,4119.4,4119.3,2.24789]
[1761638766658,1.8071,4119.4,4119.3,1.47819]
[1761638766854,1.8071,4119.4,4119.3,0.4851]
[1761638767068,1.8071,4119.4,4119.0,1.20671]
[1761638767266,0.5059,4119.1,4119.0,2.17721]
[1761638767575,1.7931,4119.1,4119.0,2.17721]
[1761638768769,1.7931,4119.1,4119.0,1.7402]
[1761638769358,1.7931,4119.1,4119.0,2.17722]
[1761638769869,1.2905,4119.1,4119.0,2.17722]
[1761638771168,1.7931,4119.1,4119.0,2.17722]
[1761638772964,2.2572,4119.5,4119.4,0.91918]
[1761638773167,1.3133,4119.5,4119.4,2.16908]
[1761638773563,2.53487,4119.5,4119.4,0.9705]
[1761638773965,2.53487,4119.5,4119.4,0.4822]
[1761638774265,1.7931,4119.3,4119.2,0.91919]
[1761638774465,1.7931,4119.3,4119.2,0.4822]
[1761638774466,2.23009,4119.3,4119.2,0.4822]
[1761638774664,1.7931,4119.1,4119.0,0.43702]
[1761638776270,1.7931,4119.1,4119.0,2.16912]
[1761638778163,0.7846,4119.1,4119.0,2.48022]
[1761638778371,0.809,4119.4,4119.3,2.16909]
[1761638778372,1.3149,4119.4,4119.3,2.16909]
[1761638778667,1.8175,4119.4,4119.3,2.16909]
[1761638778868,2.6021,4119.4,4119.3,2.16909]
[1761638779565,1.7931,4119.4,4119.3,2.16909]
[1761638783975,1.5305,4119.7,4119.6,2.16906]
[1761638784273,2.0331,4119.7,4119.6,2.16906]
[1761638784475,2.8177,4119.7,4119.6,2.16906]
[1761638784672,2.8177,4119.7,4119.6,1.7321]
[1761638784870,1.7931,4119.3,4119.2,0.437]